[Event "Swedish Championship 2022"]
[Site "Uppsala"]
[Date "2022.07.06"]
[Round "5.2"]
[White "Blomqvist, Erik"]
[Black "Cramling, Pia"]
[Result "1-0"]
[ECO "B67"]
[WhiteElo "2521"]
[BlackElo "2459"]
[Annotator "TA"]
[PlyCount "61"]
[EventDate "2022.07.01"]
[EventType "tourn"]
[EventCountry "SWE"]
[SourceTitle "playchess.com"]
[Source "ChessBase"]
[SourceQuality "1"]
[TimeControl "40/5400+30:1800+30"]

{[%evp 18,61,36,27,36,44,35,15,37,19,22,22,16,0,8,0,34,0,92,97,87,41,24,27,39,29,25,-81,0,0,0,-53,334,337,580,590,586,546,571,586,589,546,953,754,671,595]} 1. e4 {[%emt 0:00:04]} c5 {[%emt 0:02:27]} 2. Nf3 {[%emt 0:00:18]} d6 {[%emt 0:00:38]} 3. d4 {[%emt 0:00:37]} cxd4 {[%emt 0:01:05]} 4. Nxd4 {[%emt 0:00:07]} Nf6 {[%emt 0:00:08]} 5. Nc3 {[%emt 0:00:11]} Nc6 {[%emt 0:00:23]} 6. Bg5 {[%emt 0:02:06]} e6 {[%emt 0:00:19]} 7. Qd2 {[%emt 0:01:07]} a6 {[%emt 0:00:17]} 8. O-O-O {[%emt 0:00:19]} Bd7 {[%emt 0:00:18]} 9. Kb1 {[%emt 0:01:09]} Be7 {[%emt 0:14:20]} 10. f3 {[%emt 0:04:45]} Nxd4 {[%emt 0:03:32] outshines the older 10...Qc7. B67: Sicilian: Richter-Rauzer: 7...a6 8 0-0-0 Bd7, lines without 9 f4 Be7.} 11. Qxd4 {[%emt 0:00:17]} Qc7 {[%emt 0:02:39]} 12. h4 {[%emt 0:06:57]} Rc8 {[%emt 0:06:39] The position is equal.} 13. Qd2 {[%emt 0:03:47]} b5 {[%emt 0:14:59]} 14. Ne2 {[%emt 0:03:06]} b4 {[%emt 0:10:48]} 15. g4 {[%emt 0:24:41]} O-O {[%emt 0:06:40]} 16. Nd4 {[%emt 0:03:45] [#]} Rfd8 $146 {[%emt 0:04:14]} ({Predecessor:} 16... d5 17. e5 {1-0 (17) Tate,A (2167)-Schmerwitz,R (1966) Glasgow 2008}) 17. Bd3 {[%emt 0:02:09]} (17. Qxb4 e5 18. Bd3 exd4 $17) 17... Be8 {[%emt 0:03:30]} (17... a5 $1 $11) 18. h5 $16 {[%emt 0:05:57]} (18. Bxa6 Ra8 19. Be2 Rdc8 $11) (18. Qxb4 d5 19. Qe1 dxe4 20. Bxe4 a5 $11) 18... a5 {[%emt 0:00:56]} 19. Be3 {[%emt 0:03:30] White is more active.} ({White should try} 19. Qh2 $16 {Strongly threatening h6.} h6 20. Be3) 19... Nd7 $14 {[%emt 0:01:50]} 20. g5 {[%emt 0:00:30][%cal Og5g6]} Nc5 {[%emt 0:02:19]} 21. Qh2 {[%emt 0:26:39]} (21. g6 $5) 21... a4 {[%emt 0:02:09]} 22. Bb5 {[%emt 0:03:51]} (22. Bc4 $1 $11 {remains equal.}) 22... b3 {[%emt 0:05:59]} ({Black should play} 22... e5 $17 23. Bxe8 (23. h6 $2 g6 $19) 23... exd4 24. Bxf7+ (24. h6 $2 g6 $19) 24... Kxf7 25. g6+ hxg6 26. hxg6+ Ke8 27. Rxd4 b3 28. axb3 axb3 29. cxb3 Qb8) 23. Bxe8 $11 {[%emt 0:01:55]} Rxe8 {[%emt 0:05:23]} 24. g6 {[%emt 0:00:21]} (24. a3 $11) 24... Bf6 $2 {[%emt 0:01:37][%mdl 8192] [#] Black cannot hold the game after this.} (24... bxa2+ $1 $15 {keeps the upper hand.} 25. Kxa2 a3) 25. Nb5 $18 {[%emt 0:00:26] The board is on fire.} (25. axb3 axb3 26. Nxb3 Nxb3 27. cxb3 Qb7 $11) 25... Qb8 {[%emt 0:07:16]} (25... Qb7 26. gxf7+ Qxf7 27. Nxd6 Be5) 26. gxf7+ {[%emt 0:00:06] White is clearly winning.} Kxf7 {[%emt 0:00:05]} 27. Nxd6+ {[%emt 0:00:06]} Kg8 {[%emt 0:00:04] [#] ( -> ...bxa2+)} 28. cxb3 {[%emt 0:00:49]} axb3 {[%emt 0:00:07]} 29. a3 {[%emt 0:01:33]} (29. Nxe8 Be5 30. Nf6+ Kh8 $11) 29... Bxb2 {[%emt 0:03:38]} 30. Bxc5 {[%emt 0:01:41]} ({Don't blunder} 30. Kxb2 $2 Na4+ 31. Kb1 (31. Ka1 b2+ 32. Kb1 Nc3+ 33. Kc2 b1=Q+ 34. Rxb1 Nxb1+) 31... Rc2 $19) 30... Rxc5 {[%emt 0:00:39]} 31. Qxb2 {[%emt 0:00:15] Weighted Error Value: White=0.15 (very precise) /Black=0.55} 1-0

[Event "Swedish Championship 2022"]
[Site "Uppsala"]
[Date "2022.07.06"]
[Round "5.3"]
[White "Johansson, Linus"]
[Black "Hector, Jonny"]
[Result "1/2-1/2"]
[ECO "D17"]
[WhiteElo "2468"]
[BlackElo "2441"]
[Annotator "TA"]
[PlyCount "91"]
[EventDate "2022.07.01"]
[EventType "tourn"]
[EventCountry "SWE"]
[SourceTitle "playchess.com"]
[Source "ChessBase"]
[SourceQuality "1"]
[TimeControl "40/5400+30:1800+30"]

{[%evp 20,91,27,21,54,57,56,45,34,9,26,-7,-10,-11,-19,-114,-117,-100,0,0,0,-31,-28,-22,-8,-69,0,0,39,43,154,159,139,148,147,108,100,74,52,0,0,0,185,86,81,80,65,6,6,6,6,0,0,0,0,0,0,0,0,0,0,-8,0,0,0,0,0,0,0,0,0,0,0,0]} 1. d4 {[%emt 0:00:04]} d5 {[%emt 0:00:04]} 2. c4 {[%emt 0:00:06]} c6 {[%emt 0:00:08]} 3. Nf3 {[%emt 0:00:06]} Nf6 {[%emt 0:00:08]} 4. Nc3 {[%emt 0:00:04]} dxc4 {[%emt 0:00:09]} 5. a4 {[%emt 0:00:06]} Bf5 {[%emt 0:00:08]} 6. Ne5 {[%emt 0:00:04]} Nbd7 {[%emt 0:00:45]} 7. Nxc4 {[%emt 0:00:06]} Qc7 {[%emt 0:00:13]} 8. g3 {[%emt 0:00:07]} e5 {[%emt 0:00:10]} 9. dxe5 {[%emt 0:00:04]} Nxe5 {[%emt 0:00:12]} 10. Bf4 {[%emt 0:00:05]} Nfd7 {[%emt 0:00:23]} 11. Bg2 {[%emt 0:00:09]} Rd8 {[%emt 0:00:37][%cal Og7g5] D17: Slav Defence: 5 a4 Bf5: Lines with 6 Nh4 and 6 Ne5.} 12. O-O {[%emt 0:04:16]} Be6 {[%emt 0:00:39]} 13. Nxe5 {[%emt 0:03:44]} Nxe5 {[%emt 0:00:19] White is slightly better.} 14. Qc1 {[%emt 0:00:08]} Qa5 {[%emt 0:01:17] [#]} 15. Nb5 $146 {[%emt 0:19:24]} ({Predecessor:} 15. Rd1 Rxd1+ 16. Qxd1 Be7 17. Nb5 cxb5 18. Bxe5 O-O 19. Bxb7 bxa4 20. Bc3 Qc7 21. Be4 {0-1 (32) Belous,V (2529)-Reshef,O (2458) Charlotte 2019}) 15... f6 {[%emt 0:33:20]} (15... cxb5 $2 16. Bxe5 Rd7 17. Qc8+ Ke7 18. b4 $18 (18. Bxb7 Rd5 $18)) 16. Bxe5 {[%emt 0:04:09]} fxe5 {[%emt 0:00:12]} 17. Qg5 {[%emt 0:14:29]} cxb5 $17 {[%emt 0:03:02]} 18. Qh5+ {[%emt 0:03:03]} Bf7 {[%emt 0:10:56]} ({Better is} 18... Ke7 $1 $17 {...b4 is the strong threat.} 19. Qxe5 Kf7 20. Bxb7 Bd6) 19. Qxe5+ $11 {[%emt 0:00:14]} Be7 {[%emt 0:00:08]} 20. Qxg7 {[%emt 0:00:23]} (20. Rfd1 $5 {[%cal Rg2b7]}) 20... Rg8 {[%emt 0:00:24]} 21. Qxh7 {[%emt 0:00:39]} b4 {[%emt 0:06:34]} 22. Bxb7 {[%emt 0:03:33]} (22. Rfd1 $11) 22... Bf6 {[%emt 0:05:13]} (22... Qb6 $15 23. Be4 Bf6) 23. Rad1 {[%emt 0:05:50]} Rxd1 {[%emt 0:08:15]} 24. Rxd1 {[%emt 0:00:18] The board is on fire.} Rh8 {[%emt 0:07:48]} (24... Qe5 $1 $14) 25. Qe4+ $16 {[%emt 0:03:39]} Kf8 {[%emt 0:00:02]} 26. Bd5 $1 {[%emt 0:01:42] aiming for Bxf7.} Qxa4 {[%emt 0:02:23]} 27. Rd3 {[%emt 0:03:38]} Qb5 {[%emt 0:05:29]} (27... Qa1+ $2 28. Kg2 Bxd5 29. Rxd5 Qxb2 30. Qe6 $18 (30. Rd7 Qe5 $16)) 28. Bxf7 {[%emt 0:07:40]} Kxf7 {[%emt 0:00:04]} 29. Rd5 {[%emt 0:00:06]} (29. h4 $14) 29... Qc6 $11 {[%emt 0:02:19]} 30. Qf5 {[%emt 0:01:47] Prevents Rh5. Strongly threatening Rd7+.} Ke7 {[%emt 0:04:54] [#] Prevents Rd7+.} (30... Re8 $11) 31. Rc5 {[%emt 0:04:31]} (31. Re5+ $1 $18 {[%mdl 512] and White stays clearly on top.} Kf7 32. Rc5) 31... Qd6 $16 {[%emt 0:02:37]} 32. Qe4+ {[%emt 0:00:59][%mdl 1024] White has strong compensation.} Kf7 {[%emt 0:00:27]} 33. Qc4+ {[%emt 0:01:07]} (33. Rc6 $14 Qe5 34. Qc4+ (34. Qxb4 Qxe2 35. Qb3+ Kg7 $11) 34... Kg6 35. Rc5 (35. Qg4+ Kf7 $16)) 33... Qe6 $1 $11 {[%emt 0:01:53] The position is equal.} (33... Kg7 34. Rc7+ Be7 35. Rxa7 $16 (35. Qg4+ Kh6 $16)) 34. Rc7+ {[%emt 0:00:34]} Be7 {[%emt 0:00:03] Hoping for ...Qxc4.} 35. Qf4+ {[%emt 0:03:00]} Kg6 {[%emt 0:00:43]} 36. Qd2 {[%emt 0:05:31]} (36. Qd4 Rd8 37. Qf4 Bd6 38. Rg7+ Kxg7 $17) 36... Rd8 {[%emt 0:02:44]} 37. Qc2+ {[%emt 0:00:19]} (37. Qc1 Qxe2 38. Qb1+ Kf6 39. Rc6+ Rd6 40. Rxd6+ Bxd6 $17) 37... Kh6 {[%emt 0:00:18]} 38. h4 {[%emt 0:01:51]} b3 {[%emt 0:00:35]} 39. Qc1+ {[%emt 0:01:15]} Kg6 {[%emt 0:00:18]} (39... Kh5 40. Qf4 (40. Rxa7 Qe4 $11) 40... Kg6 41. Rxa7 $16) 40. Qb1+ {[%emt 0:05:30]} Kh6 {[%emt 0:02:56]} 41. Qc1+ {[%emt 0:12:39]} (41. Rxa7 Qxe2 42. Qc1+ Rd2 43. Qc6+ (43. Rxe7 $2 {leads to mate.} Qxf2+ 44. Kh1 Qh2#) 43... Bd6 $19) 41... Kg6 {[%emt 0:03:09]} ({Don't play} 41... Kh5 42. Qf4 (42. Rxa7 Qxe2 43. Qf4 Rf8 $11) 42... Kg6 43. Rxa7 $16) 42. Qf4 {[%emt 0:02:29]} Rf8 {[%emt 0:05:43]} 43. Qd2 {[%emt 0:06:09]} Rd8 {[%emt 0:09:07]} 44. Qf4 {[%emt 0:00:37]} Rf8 {[%emt 0:00:07]} 45. Qd2 {[%emt 0:00:11]} Rd8 {[%emt 0:00:24]} 46. Qf4 {[%emt 0:02:43] Weighted Error Value: White=0.19 (very precise) /Black=0.22 (precise)} 1/2-1/2

[Event "Swedish Championship 2022"]
[Site "Uppsala"]
[Date "2022.07.06"]
[Round "5.4"]
[White "Carlsson, Ludvig"]
[Black "Seo, Jung Min"]
[Result "0-1"]
[ECO "C47"]
[WhiteElo "2399"]
[BlackElo "2492"]
[Annotator "TA"]
[PlyCount "106"]
[EventDate "2022.07.01"]
[EventType "tourn"]
[EventCountry "SWE"]
[SourceTitle "playchess.com"]
[Source "ChessBase"]
[SourceQuality "1"]
[TimeControl "40/5400+30:1800+30"]

{[%evp 16,106,0,0,2,2,0,7,13,0,0,0,0,0,0,-26,-20,-17,0,0,0,0,78,62,55,0,18,10,8,0,27,0,0,0,343,39,35,4,22,0,35,34,18,34,151,0,133,125,78,-8,8,8,8,8,12,12,66,43,45,8,8,8,12,-50,-50,-458,-447,-671,-667,-935,-716,-1366,-1091,-946,-970,-2867,-1998,-29982,-29983,-29983,-29984,-29987,-29982,-29980,-29944,-29991,-29988,-29988,-1164,-29988,-29987,-29987,-545]} 1. e4 {[%emt 0:00:09]} e5 {[%emt 0:00:02]} 2. Nf3 {[%emt 0:00:14]} Nc6 {[%emt 0:00:03]} 3. Nc3 {[%emt 0:00:15]} Nf6 {[%emt 0:00:02]} 4. d4 {[%emt 0:00:14]} exd4 {[%emt 0:00:05]} 5. Nxd4 {[%emt 0:00:10]} Bb4 {[%emt 0:00:09]} 6. Nxc6 {[%emt 0:00:16]} bxc6 {[%emt 0:00:02]} 7. Bd3 {[%emt 0:00:17]} O-O {[%emt 0:00:04]} 8. O-O {[%emt 0:00:08]} d5 {[%emt 0:00:01]} 9. Bd2 {[%emt 0:00:11]} Rb8 {[%emt 0:05:24] C47: Scotch Four Knights and Four Knights with 4 g3.} 10. Re1 {[%emt 0:00:30]} Re8 {[%emt 0:01:57] 10...Bg4 might become the main line.} 11. a3 {[%emt 0:03:17] [#]} Be7 $146 {[%emt 0:02:26] The position is equal.} ({Predecessor:} 11... Bd6 12. h3 Rxb2 13. exd5 cxd5 14. Nb5 Ne4 15. Nxd6 Qxd6 16. Bb4 Qf6 17. Qf3 Bf5 18. Bxe4 dxe4 19. Bc3 Qc6 20. Qg3 {1-0 (20) Kryvoruchko,Y (2699)-Banusz,T (2631) Tornelo INT 2021}) 12. e5 {[%emt 0:08:23]} Nd7 {[%emt 0:00:05]} 13. b4 {[%emt 0:00:17]} (13. Qh5 g6 14. Qf3 Bg5 15. Bxg5 Qxg5 $17) 13... Bf8 {[%emt 0:02:34]} 14. f4 {[%emt 0:02:41]} (14. Qh5 g6 15. Qg5 Qxg5 16. Bxg5 Rxe5 $17) 14... c5 {[%emt 0:03:40]} 15. Kh1 {[%emt 0:17:21]} c6 {[%emt 0:15:27]} 16. Qf3 {[%emt 0:02:15]} cxb4 {[%emt 0:11:58]} 17. axb4 {[%emt 0:00:13]} Bxb4 {[%emt 0:00:12]} 18. Rxa7 {[%emt 0:00:53]} Rb7 {[%emt 0:01:32]} (18... Qh4 $11) 19. Rxb7 $1 $16 {[%emt 0:12:48]} Bxb7 {[%emt 0:00:01]} 20. Qg3 {[%emt 0:00:40]} (20. Rb1 $14 c5 21. Nb5) 20... Be7 {[%emt 0:10:10]} 21. Qh3 {[%emt 0:09:49]} Nf8 {[%emt 0:00:44]} 22. Qg4 {[%emt 0:00:17]} Nd7 {[%emt 0:02:14]} (22... Bc8 $5 {[%cal Rc8g4]} 23. f5 Bc5 $14) 23. f5 {[%emt 0:02:23]} (23. Na4 $5 {[%cal Rd2c3]}) 23... Bf8 {[%emt 0:02:07]} 24. Qg3 {[%emt 0:01:27]} d4 $2 {[%emt 0:02:08][%mdl 8192]} (24... Nc5 $11 {and Black is okay.}) 25. Nd1 $2 {[%emt 0:00:05]} (25. e6 $18 {Intending exf7+ and mate.} fxe6 26. Ne4 (26. fxe6 Nc5 $14)) 25... Nc5 $14 {[%emt 0:01:16]} 26. Nf2 {[%emt 0:10:19] Strongly threatening Bc4.} (26. Bc4 {feels hotter.} Ba6 27. Bxa6 Nxa6 28. Nf2) 26... Nxd3 {[%emt 0:00:05]} 27. cxd3 {[%emt 0:00:07] Threatens to win with Ne4.} c5 {[%emt 0:00:36][%cal Bc6c5,Bc5c4][%mdl 32]} 28. Ng4 {[%emt 0:00:33] aiming for Nh6+.} Kh8 {[%emt 0:00:47]} 29. h4 {[%emt 0:00:10]} Qd5 {[%emt 0:02:36]} (29... h5 $14 30. Nf2 Be7) 30. Bg5 $2 {[%emt 0:02:13]} (30. h5 $1 $16 {[%cal Rh5h6]}) 30... Ra8 {[%emt 0:04:47] [#]} (30... h5 $1 $11 {keeps the balance.} 31. Nf2 Qd7) 31. Nf6 $1 $16 {[%emt 0:09:14][%mdl 512]} Qc6 {[%emt 0:03:07]} 32. Ne4 {[%emt 0:00:05]} (32. Nh5 $16) 32... c4 {[%emt 0:01:18]} 33. f6 {[%emt 0:00:24] Hoping for dxc4.} cxd3 {[%emt 0:00:55]} 34. fxg7+ {[%emt 0:01:28][%mdl 64] Remove Defender} Bxg7 {[%emt 0:00:02] This bishop pair is nice.} 35. Nd6 {[%emt 0:00:28]} ({Avoid the trap} 35. Bf6 $2 Bxf6 36. Nd6 (36. exf6 $2 Rg8 $17) 36... Qxg2+ $1 {[%mdl 512]} 37. Qxg2 Bxg2+ 38. Kxg2 Ra2+ 39. Kh3 Bg7 $19) 35... Qd7 {[%emt 0:12:11]} (35... Ra2 $2 36. Nxb7 d2 {[#]} 37. Rd1 $1 $18) (35... Qd5 $1 $11) 36. Rb1 {[%emt 0:01:25]} d2 $1 {[%emt 0:01:58]} 37. Bxd2 {[%emt 0:00:41]} Bd5 {[%emt 0:00:06]} 38. Bg5 {[%emt 0:00:44] Threatening mate with Bf6.} Rg8 {[%emt 0:01:22]} 39. Rf1 {[%emt 0:01:50]} (39. Rb5 $11 Qe6 40. h5) 39... h6 $1 $15 {[%emt 0:01:17]} 40. Rf2 $2 {[%emt 0:01:34][%mdl 8192] This move loses the game for White.} hxg5 $19 {[%emt 0:02:51]} 41. hxg5 {[%emt 0:34:16]} (41. Nf5 $142 Qa4 42. Rf1) 41... Ra8 {[%emt 0:31:36]} 42. e6 {[%emt 0:04:41]} Bxe6 {[%emt 0:02:03]} 43. Rf6 {[%emt 0:00:06]} Rd8 {[%emt 0:02:45]} 44. Ne4 {[%emt 0:04:55]} d3 {[%emt 0:02:20] And now ...d2 would win.} 45. Rf1 {[%emt 0:01:01]} Qd4 {[%emt 0:01:38]} (45... d2 {is a self mate.} 46. Nf6 Bxf6 47. gxf6 Bg4 48. Qh4+) 46. Nf6 {[%emt 0:00:00]} Bxf6 {[%emt 0:00:00]} 47. gxf6 {[%emt 0:00:00]} Qg4 {[%emt 0:00:00]} 48. Qc7 {[%emt 0:00:00]} Qh4+ {[%emt 0:00:00]} 49. Kg1 {[%emt 0:00:00]} Rg8 {[%emt 0:00:00][%cal Og8g2]} 50. Rf4 {[%emt 0:00:00]} Qe1+ {[%emt 0:00:00]} 51. Rf1 {[%emt 0:00:00]} Qg3 {[%emt 0:00:00]} (51... Qe3+ $142 52. Kh1 Rg6 53. Qh2+ Rh6 54. Qxh6+ Qxh6+ 55. Kg1 d2 56. Rb1 Qf4 57. Rf1 Qg3 58. Rd1 Qe1+ 59. Rxe1 dxe1=Q+ 60. Kh2 Bg4 61. g3 Qf2+ 62. Kh1 Bf3#) 52. Qc6 {[%emt 0:00:00]} Bh3 {[%emt 0:00:00]} 53. Qd5 {[%emt 0:00:00]} Qxg2+ {[%emt 0:00:00] Weighted Error Value: White=0.78/Black=0.43} 0-1

[Event "Swedish Championship 2022"]
[Site "Uppsala"]
[Date "2022.07.06"]
[Round "5.5"]
[White "Jogstad, Martin"]
[Black "Hillarp Persson, Tiger"]
[Result "0-1"]
[ECO "E24"]
[WhiteElo "2384"]
[BlackElo "2516"]
[Annotator "TA"]
[PlyCount "94"]
[EventDate "2022.07.01"]
[EventType "tourn"]
[EventCountry "SWE"]
[SourceTitle "playchess.com"]
[Source "ChessBase"]
[SourceQuality "1"]
[TimeControl "40/5400+30:1800+30"]

{[%evp 12,93,-25,-33,49,27,28,15,41,35,41,35,66,50,58,58,53,43,52,43,37,0,0,0,0,0,0,0,30,14,35,26,83,34,42,33,36,36,69,70,79,71,106,114,205,106,89,79,82,47,153,151,145,0,168,141,192,207,202,202,197,-204,-204,-202,-206,-206,-206,-432,-431,-404,-423,-780,-777,-1548,-1151,-29996,-29997,-29997,-29997,-29997,-29998,-29998,-29999,-29999]} 1. d4 {[%emt 0:00:14]} Nf6 {[%emt 0:00:20]} 2. c4 {[%emt 0:00:10]} e6 {[%emt 0:00:03]} 3. Nc3 {[%emt 0:00:09]} Bb4 {[%emt 0:02:34]} 4. a3 {[%emt 0:00:05]} Bxc3+ {[%emt 0:00:09]} 5. bxc3 {[%emt 0:00:06]} c5 {[%emt 0:06:59]} 6. f3 {[%emt 0:00:06]} Nc6 $1 {[%emt 0:00:34][%mdl 4] now scores much better than the old 6...d5.} 7. e4 {[%emt 0:00:08]} e5 {[%emt 0:01:17] E24: Nimzo-Indian: Sämisch: Unusual Black 5th moves and 5...c5 sidelines.} (7... d6 $15) 8. d5 {[%emt 0:06:42]} Na5 {[%emt 0:03:18]} 9. Bd3 {[%emt 0:00:49]} d6 {[%emt 0:01:08] The position is equal.} 10. Ne2 {[%emt 0:04:46]} b6 {[%emt 0:12:42]} 11. Ng3 {[%emt 0:02:32] [#]} Kd7 $146 {[%emt 0:07:46]} ({Predecessor:} 11... Qe7 12. O-O g6 13. Bh6 Nd7 14. Rf2 Ba6 15. Qe2 Qh4 16. Be3 O-O-O 17. Nf1 f5 18. exf5 Bxc4 {0-1 (47) Lodici,L (2545)-Klekowski,M (2483) Montesilvano 2022}) 12. O-O {[%emt 0:06:34]} Ne8 {[%emt 0:17:11]} 13. f4 {[%emt 0:07:00] Threatens to win with fxe5.} f6 {[%emt 0:01:06]} 14. Nf5 {[%emt 0:14:21]} Kc7 {[%emt 0:01:10]} 15. Ne3 {[%emt 0:00:09]} Rb8 {[%emt 0:05:19][%cal Ba8b8,Bb8b7,Bb7e7,Be7e5][%mdl 32]} 16. g4 {[%emt 0:07:26]} exf4 {[%emt 0:01:53]} 17. Rxf4 {[%emt 0:00:25]} Rb7 {[%emt 0:00:18]} 18. Ra2 {[%emt 0:04:25]} Kb8 {[%emt 0:00:12]} 19. Rg2 {[%emt 0:01:34]} Re7 {[%emt 0:13:16]} 20. h4 {[%emt 0:11:59]} Re5 {[%emt 0:02:57]} 21. Nf5 {[%emt 0:06:51]} h6 {[%emt 0:02:40] [#]} (21... g5 $11 22. Rff2 (22. hxg5 fxg5 23. Rf1 h6 $11) 22... Bxf5 23. exf5 h6) 22. Rf1 {[%emt 0:03:34]} ({White should try} 22. h5 $1 $16) 22... g5 $1 $14 {[%emt 0:00:11]} 23. Ne3 {[%emt 0:04:36]} Rh7 {[%emt 0:00:45]} 24. Bd2 {[%emt 0:00:45]} Rhe7 {[%emt 0:02:42]} 25. Qf3 {[%emt 0:03:03]} Qd7 {[%emt 0:01:57]} 26. Nf5 {[%emt 0:08:14]} Ba6 {[%emt 0:05:52][%cal Oe5f5]} 27. Nxh6 {[%emt 0:04:36] Black must now prevent hxg5.} Bxc4 {[%emt 0:01:26] [#]} (27... Nxc4 $16 {was necessary.} 28. Bc1 gxh4) 28. Nf5 {[%emt 0:00:41]} (28. hxg5 $1 $18 fxg5 29. Nf5) 28... gxh4 $16 {[%emt 0:00:42]} 29. Nxe7 {[%emt 0:00:43]} Qxe7 {[%emt 0:00:47]} 30. Re1 {[%emt 0:01:30] And now Bxc4 would win.} Qd7 {[%emt 0:01:54]} (30... Bxd5 $1 $14 31. Rh2 Bc4) 31. Bf4 {[%emt 0:00:41]} Re7 {[%emt 0:00:08]} 32. Kh2 {[%emt 0:01:01]} ({White should play} 32. g5 $16) 32... Bxd3 $2 {[%emt 0:01:43]} (32... Bxd5 $1 $11 {and Black stays safe.} 33. g5 fxg5 34. Rxg5 (34. Bxg5 Rf7 $11) 34... Be6) 33. Qxd3 $18 {[%emt 0:00:02]} Qa4 {[%emt 0:00:08]} (33... Kb7 $16 34. g5 fxg5 35. Bxg5 Rg7) 34. g5 {[%emt 0:00:15]} fxg5 {[%emt 0:00:52]} 35. Bxg5 {[%emt 0:00:02]} Rg7 {[%emt 0:00:27]} 36. e5 $4 {[%emt 0:01:14][%mdl 8192] [#]} ({Don't take} 36. Bxh4 $6 Rh7 37. Rg4 Nf6 $16) (36. Rf1 $18) 36... Rxg5 $1 $19 {[%emt 0:00:08][%mdl 512] The board is on fire.} 37. Re4 {[%emt 0:00:38] Prevents Qf4+.} Rxg2+ {[%emt 0:00:10]} 38. Kxg2 {[%emt 0:00:01]} c4 {[%emt 0:05:05]} ({Worse is} 38... Qxa3 39. Rxh4 Qb2+ 40. Kh3) 39. Qd4 {[%emt 0:01:19]} (39. Qe2 {keeps fighting.}) 39... Qc2+ {[%emt 0:00:55]} 40. Kh3 {[%emt 0:00:32]} Nb3 {[%emt 0:00:46]} 41. Qxc4 {[%emt 0:13:10]} (41. Qe3 $142 Nc5 42. Rxc4) 41... Nd2 {[%emt 0:00:44][%csl LRc4,LRe4]} 42. Qa4 {[%emt 0:04:54]} Qd3+ {[%emt 0:02:00]} 43. Kh2 {[%emt 0:00:17]} Qg3+ {[%emt 0:00:11] Black mates.} 44. Kh1 {[%emt 0:00:08]} Qf3+ {[%emt 0:00:10]} 45. Kh2 {[%emt 0:00:33]} Qf2+ {[%emt 0:00:07]} 46. Kh1 {[%emt 0:00:10]} Qf1+ {[%emt 0:00:06]} 47. Kh2 {[%emt 0:00:06]} Nf3# {[%emt 0:00:56] Weighted Error Value: White=0.72/Black=0.22 (precise)} 0-1